fUSD/lending_fUSD_20240526
["ID","MTS","AMOUNT","RATE_DAILY","PERIOD"]
[327967032,1716726662050,-569.4,0.00028219,4]
[327967033,1716726662060,-500.0,0.00028219,4]
[327967034,1716726662069,-500.0,0.00028219,4]
[327967035,1716726662079,-711.48,0.00028219,4]
[327967036,1716726662088,-500.0,0.00028219,4]
[327967037,1716726662098,-1427.74,0.00028219,4]
[327967038,1716726662107,-500.0,0.00028219,4]
[327967039,1716726662117,-500.0,0.00028219,4]
[327967040,1716726662126,-1095.48,0.00028219,4]
[327967041,1716726662136,-500.0,0.00028219,4]
[327967042,1716726662145,-500.0,0.00028219,4]
[327967043,1716726662156,-500.0,0.00028219,4]
[327967044,1716726662165,-350.96477176,0.00028219,4]
[327967045,1716726662174,-500.0,0.00028219,4]
[327967046,1716726662182,-1082.79,0.00028219,4]
[327967047,1716726662192,-500.0,0.00028219,4]
[327967048,1716726662201,-1095.66,0.00028219,4]
[327967049,1716726662211,-507.08840315,0.00028219,4]
[327967050,1716726662220,-500.0,0.00028219,4]
[327967051,1716726662229,-745.03,0.00028219,4]
[327967052,1716726662239,-903.28,0.00028219,4]
[327967053,1716726662248,-500.0,0.00028219,4]
[327967054,1716726662258,-1100.25,0.00028219,4]
[327967055,1716726662268,-500.0,0.00028219,4]
[327967056,1716726662280,-500.0,0.00028219,4]
[327967057,1716726662290,-500.0,0.00028219,4]
[327967058,1716726662300,-1021.61,0.00028219,4]
[327967059,1716726662310,-978.93,0.00028219,4]
[327967060,1716726662320,-1078.82,0.00028219,4]
[327967061,1716726662329,-500.0,0.00028219,4]
[327967062,1716726662339,-1395.14,0.00028219,4]
[327967063,1716726662348,-500.0,0.00028219,4]
[327967064,1716726662358,-500.0,0.00028219,4]
[327967065,1716726662368,-500.0,0.00028219,4]
[327967066,1716726662377,-1200.79,0.00028219,4]
[327967067,1716726662387,-1293.6,0.00028219,4]
[327967068,1716726662396,-500.0,0.00028219,4]
[327967069,1716726662406,-500.0,0.00028219,4]
[327967070,1716726662416,-501.15,0.00028219,4]
[327967071,1716726662425,-500.0,0.00028219,4]
[327967072,1716726662435,-500.0,0.00028219,4]
[327967073,1716726662444,-500.0,0.00028219,4]
[327967074,1716726662454,-500.0,0.00028219,4]
[327967075,1716726662464,-988.59,0.00028219,4]
[327967076,1716726662477,-500.0,0.00028219,4]
[327967077,1716726662486,-500.0,0.00028219,4]
[327967078,1716726662495,-1409.6,0.00028219,4]
[327967079,1716726662506,-500.0,0.00028219,4]
[327967080,1716726662516,-500.0,0.00028219,4]
[327967081,1716726662526,-500.0,0.00028219,4]
[327967082,1716726662536,-500.0,0.00028219,4]
[327967083,1716726662547,-665.35,0.00028219,4]
[327967084,1716726662556,-500.0,0.00028219,4]
[327967085,1716726662565,-500.0,0.00028219,4]
[327967086,1716726662575,-964.14,0.00028219,4]
[327967087,1716726662584,-1372.12,0.00028219,4]
[327967088,1716726662593,-508.19,0.00028219,4]
[327967089,1716726662602,-500.0,0.00028219,4]
[327967090,1716726662611,-4825.69,0.00028219,4]
[327967091,1716726662621,-358.40709452,0.00028219,4]
[327967092,1716726662630,-934.06,0.00028219,4]
[327967093,1716726662640,-488.259841,0.00028219,7]
[327967094,1716726662650,-488.259841,0.00028219,7]
[327967095,1716726662659,-500.0,0.00028219,4]
[327967096,1716726662670,-546.92,0.00028219,4]
[327967097,1716726662679,-488.259841,0.00028219,7]
[327967098,1716726662688,-488.259841,0.00028219,7]
[327967099,1716726662698,-531.24,0.00028219,4]
[327967100,1716726662707,-500.0,0.00028219,4]
[327967101,1716726662716,-500.0,0.00028219,4]
[327967102,1716726662725,-524.18,0.00028219,4]
[327967103,1716726662735,-500.0,0.00028219,4]
[327967104,1716726662744,-689.49,0.00028219,4]
[327967105,1716726662753,-1322.64,0.00028219,4]
[327967106,1716726662762,-500.0,0.00028219,4]
[327967107,1716726662772,-500.0,0.00028219,4]
[327967108,1716726662782,-748.21,0.00028219,4]
[327967109,1716726662792,-270.91473062,0.00028219,4]
[327967110,1716726662800,-569.7,0.00028219,4]
[327967111,1716726662810,-500.0,0.00028219,4]
[327967112,1716726662819,-576.05,0.00028219,4]
[327967113,1716726662828,-608.77,0.00028219,4]
[327967114,1716726662838,-500.0,0.00028219,4]
[327967115,1716726662848,-1117.54,0.00028219,4]
[327967116,1716726662857,-740.29,0.00028219,4]
[327967117,1716726662866,-849.63,0.00028219,4]
[327967118,1716726662875,-940.73,0.00028219,4]
[327967119,1716726662885,-500.0,0.00028219,4]
[327967120,1716726662894,-500.0,0.00028219,4]
[327967121,1716726662903,-534.85448935,0.00028219,4]
[327967122,1716726662913,-500.0,0.00028219,4]
[327967123,1716726662922,-500.0,0.00028219,4]
[327967124,1716726662931,-520.01,0.00028219,4]
[327967125,1716726662941,-996.37,0.00028219,4]
[327967126,1716726662950,-500.0,0.00028219,4]
[327967127,1716726662959,-518.69,0.00028219,4]
[327967128,1716726662968,-500.0,0.00028219,4]
[327967129,1716726662978,-515.68660031,0.00028219,4]
[327967130,1716726662987,-500.0,0.00028219,4]
[327967131,1716726662996,-1218.55,0.00028219,4]
[327967132,1716726663005,-668.66,0.00028219,4]
[327967133,1716726663015,-500.0,0.00028219,4]
[327967134,1716726663024,-788.57,0.00028219,4]
[327967135,1716726663036,-500.0,0.00028219,4]
[327967136,1716726663046,-500.0,0.00028219,4]
[327967137,1716726663055,-500.0,0.00028219,4]
[327967138,1716726663064,-1777.79,0.00028219,4]
[327967139,1716726663074,-500.0,0.00028219,4]
[327967140,1716726663083,-683.86,0.00028219,4]
[327967141,1716726663092,-500.0,0.00028219,4]
[327967142,1716726663101,-500.0,0.00028219,4]
[327967143,1716726663112,-500.0,0.00028219,4]
[327967144,1716726663121,-500.0,0.00028219,4]
[327967145,1716726663130,-512.19,0.00028219,4]
[327967146,1716726663139,-539.29,0.00028219,4]
[327967147,1716726663148,-500.0,0.00028219,4]
[327967148,1716726663157,-500.0,0.00028219,4]
[327967149,1716726663166,-577.13,0.00028219,4]
[327967150,1716726663175,-309.47670267,0.00028219,4]
[327967151,1716726663185,-500.0,0.00028219,4]
[327967152,1716726663194,-693.81,0.00028219,4]
[327967153,1716726663204,-553.46,0.00028219,4]
[327967154,1716726663214,-587.04,0.00028219,4]
[327967155,1716726663224,-500.0,0.00028219,4]
[327967156,1716726663234,-500.0,0.00028219,4]
[327967157,1716726663243,-500.0,0.00028219,4]
[327967158,1716726663253,-500.0,0.00028219,4]
[327967159,1716726663263,-535.14966882,0.00028219,4]
[327967160,1716726663272,-500.0,0.00028219,4]
[327967161,1716726663285,-500.0,0.00028219,4]
[327967162,1716726663295,-1256.52,0.00028219,4]
[327967163,1716726663305,-653.52,0.00028219,4]
[327967164,1716726663314,-355.65,0.00028219,4]
[327967165,1716726663323,-500.0,0.00028219,4]
[327967166,1716726663333,-500.0,0.00028219,4]
[327967167,1716726663342,-531.91,0.00028219,4]
[327967168,1716726663352,-753.29,0.00028219,4]
[327967169,1716726663361,-500.0,0.00028219,4]
[327967170,1716726663370,-564.09,0.00028219,4]
[327967171,1716726663380,-881.23,0.00028219,4]
[327967172,1716726663389,-520.84,0.00028219,4]
[327967173,1716726663398,-500.0,0.00028219,4]
[327967174,1716726663407,-709.29,0.00028219,4]
[327967175,1716726663419,-685.35,0.00028219,4]
[327967176,1716726663429,-1280.87,0.00028219,4]
[327967177,1716726663438,-431.04114653,0.00028219,4]
[327967178,1716726663448,-500.0,0.00028219,4]
[327967179,1716726663458,-500.0,0.00028219,4]
[327967180,1716726663471,-849.04,0.00028219,4]
[327967181,1716726663481,-500.0,0.00028219,4]
[327967182,1716726663491,-738.62,0.00028219,4]
[327967183,1716726663500,-500.0,0.00028219,4]
[327967184,1716726663510,-500.0,0.00028219,4]
[327967185,1716726663520,-500.0,0.00028219,4]
[327967186,1716726663530,-847.07,0.00028219,4]
[327967187,1716726663539,-500.0,0.00028219,4]
[327967188,1716726663550,-500.0,0.00028219,4]
[327967189,1716726663560,-894.21,0.00028219,4]
[327967190,1716726663570,-500.0,0.00028219,4]
[327967191,1716726663579,-372.25092404,0.00028219,4]
[327967192,1716726663588,-1117.97,0.00028219,4]
[327967193,1716726663598,-500.0,0.00028219,4]
[327967194,1716726663607,-500.0,0.00028219,4]
[327967195,1716726663616,-500.0,0.00028219,4]
[327967196,1716726663625,-500.0,0.00028219,4]
[327967197,1716726663634,-263.97,0.00028219,4]
[327967198,1716726663642,-534.2,0.00028219,4]
[327967199,1716726663652,-500.0,0.00028219,4]
[327967200,1716726663661,-500.0,0.00028219,4]
[327967201,1716726663670,-500.0,0.00028219,4]
[327967202,1716726663679,-628.27,0.00028219,4]
[327967203,1716726663689,-500.0,0.00028219,4]
[327967204,1716726663699,-500.0,0.00028219,4]
[327967205,1716726663708,-500.0,0.00028219,4]
[327967206,1716726663718,-500.0,0.00028219,4]
[327967207,1716726663728,-367.12476691,0.00028219,4]
[327967208,1716726663738,-504.64,0.00028219,4]
[327967209,1716726663747,-518.73,0.00028219,4]
[327967210,1716726663758,-500.0,0.00028219,4]
[327967211,1716726663767,-538.37,0.00028219,4]
[327967212,1716726663777,-500.0,0.00028219,4]
[327967213,1716726663786,-538.49,0.00028219,4]
[327967214,1716726663795,-736.02,0.00028219,4]
[327967215,1716726663806,-500.0,0.00028219,4]
[327967216,1716726663816,-500.0,0.00028219,4]
[327967217,1716726663826,-953.13,0.00028219,4]
[327967218,1716726663836,-500.0,0.00028219,4]
[327967219,1716726663846,-500.0,0.00028219,4]
[327967220,1716726663855,-500.0,0.00028219,4]
[327967221,1716726663866,-785.05,0.00028219,4]
[327967222,1716726663876,-2426.56,0.00028219,4]
[327967223,1716726663885,-500.0,0.00028219,4]
[327967224,1716726663895,-710.0,0.00028219,4]
[327967225,1716726663904,-500.0,0.00028219,4]
[327967226,1716726663913,-2179.03,0.00028219,4]
[327967227,1716726663922,-500.0,0.00028219,4]
[327967228,1716726663932,-500.0,0.00028219,4]
[327967229,1716726663942,-500.0,0.00028219,4]
[327967230,1716726663951,-500.0,0.00028219,4]
[327967231,1716726663961,-3776.78,0.00028219,4]
[327967232,1716726663972,-500.0,0.00028219,4]
[327967233,1716726663980,-500.0,0.00028219,4]
[327967234,1716726663989,-500.0,0.00028219,4]
[327967235,1716726663999,-500.0,0.00028219,4]
[327967236,1716726664008,-671.27,0.00028219,4]
[327967237,1716726664017,-500.0,0.00028219,4]
[327967238,1716726664027,-500.0,0.00028219,4]
[327967239,1716726664036,-565.20810483,0.00028219,4]
[327967240,1716726664046,-625.9,0.00028219,4]
[327967241,1716726664055,-2259.1,0.00028219,4]
[327967242,1716726664063,-1205.23,0.00028219,4]
[327967243,1716726664073,-919.51,0.00028219,4]
[327967244,1716726664082,-500.0,0.00028219,4]
[327967245,1716726664091,-523.82,0.00028219,4]
[327967246,1716726664101,-588.98,0.00028219,4]
[327967247,1716726664110,-1045.91,0.00028219,4]
[327967248,1716726664119,-660.1,0.00028219,4]
[327967249,1716726664128,-967.75,0.00028219,4]
[327967250,1716726664137,-500.0,0.00028219,4]
[327967251,1716726664146,-500.0,0.00028219,4]
[327967252,1716726664155,-500.0,0.00028219,4]
[327967253,1716726664164,-500.0,0.00028219,4]
[327967254,1716726664174,-500.0,0.00028219,4]
[327967255,1716726664183,-1067.83,0.00028219,4]
[327967256,1716726664192,-500.0,0.00028219,4]
[327967257,1716726664201,-1256.35,0.00028219,4]
[327967258,1716726664211,-646.03,0.00028219,4]
[327967259,1716726664220,-872.37,0.00028219,4]
[327967260,1716726664230,-500.0,0.00028219,4]
[327967261,1716726664239,-500.0,0.00028219,4]
[327967262,1716726664248,-3739.03,0.00028219,4]
[327967263,1716726664256,-500.0,0.00028219,4]
[327967264,1716726664265,-614.94,0.00028219,4]
[327967265,1716726664274,-13328.25,0.00028219,4]
[327967266,1716726664284,-1268.88,0.00028219,4]
[327967267,1716726664293,-2755.67,0.00028219,4]
[327967268,1716726664302,-738.74,0.00028219,4]
[327967269,1716726664311,-978.58,0.00028219,4]
[327967270,1716726664320,-500.0,0.00028219,4]
[327967271,1716726664329,-772.31,0.00028219,4]
[327967272,1716726664338,-1152.0,0.00028219,4]
[327967273,1716726664347,-500.0,0.00028219,4]
[327967274,1716726664356,-968.66,0.00028219,4]
[327967275,1716726664366,-1025.7,0.00028219,4]
[327967276,1716726664375,-500.0,0.00028219,4]
[327967277,1716726664383,-2317.75,0.00028219,4]
[327967278,1716726664392,-881.77,0.00028219,4]
[327967279,1716726664401,-500.0,0.00028219,4]
[327967280,1716726664410,-9133.15,0.00028219,4]
[327967281,1716726664419,-771.31,0.00028219,4]
[327967282,1716726664428,-1381.37,0.00028219,4]
[327967283,1716726664437,-1167.0,0.00028219,4]
[327967284,1716726664446,-774.73,0.00028219,4]
[327967285,1716726664455,-500.0,0.00028219,4]
[327967286,1716726664468,-901.37,0.00028219,4]
[327967287,1716726664483,-500.0,0.00028219,4]
[327967288,1716726664492,-500.0,0.00028219,4]
[327967289,1716726664500,-1145.66,0.00028219,4]
[327967290,1716726664510,-727.43,0.00028219,4]
[327967291,1716726664519,-1868.34,0.00028219,4]
[327967292,1716726664528,-1089.85,0.00028219,4]
[327967293,1716726664537,-500.0,0.00028219,4]
[327967294,1716726664547,-592.74,0.00028219,4]
[327967295,1716726664556,-3521.87,0.00028219,4]
[327967296,1716726664566,-500.0,0.00028219,4]
[327967297,1716726664575,-500.0,0.00028219,4]
[327967298,1716726664583,-1945.48,0.00028219,4]
[327967299,1716726664592,-500.0,0.00028219,4]
[327967300,1716726664601,-1265.8,0.00028219,4]
[327967301,1716726664610,-590.02,0.00028219,4]
[327967302,1716726664618,-500.0,0.00028219,4]
[327967303,1716726664627,-3778.36,0.00028219,4]
[327967304,1716726664637,-500.0,0.00028219,4]
[327967305,1716726664645,-999.06,0.00028219,4]
[327967306,1716726664655,-500.0,0.00028219,4]
[327967307,1716726664663,-500.0,0.00028219,4]
[327967308,1716726664673,-796.74,0.00028219,4]
[327967309,1716726664682,-500.0,0.00028219,4]
[327967310,1716726664692,-659.36,0.00028219,4]
[327967311,1716726664701,-581.14,0.00028219,4]
[327967312,1716726664710,-500.0,0.00028219,4]
[327967313,1716726664719,-814.25,0.00028219,4]
[327967314,1716726664727,-500.0,0.00028219,4]
[327967315,1716726664736,-607.52,0.00028219,4]
[327967316,1716726664745,-1590.91,0.00028219,4]
[327967317,1716726664754,-500.0,0.00028219,4]
[327967318,1716726664763,-4326.72,0.00028219,4]
[327967319,1716726664772,-500.0,0.00028219,4]
[327967320,1716726664781,-862.83,0.00028219,4]
[327967321,1716726664790,-800.82,0.00028219,4]
[327967322,1716726664800,-1930.56,0.00028219,4]
[327967323,1716726664808,-500.0,0.00028219,4]
[327967324,1716726664817,-500.0,0.00028219,4]
[327967325,1716726664826,-571.9692333,0.00028219,4]
[327967326,1716726664835,-402.14813505,0.00028219,4]
[327967327,1716726664843,-1987.82,0.00028219,4]
[327967328,1716726664852,-500.0,0.00028219,4]
[327967329,1716726664861,-954.19,0.00028219,4]
[327967330,1716726664870,-975.91,0.00028219,4]
[327967331,1716726664879,-500.0,0.00028219,4]
[327967332,1716726664887,-500.0,0.00028219,4]
[327967333,1716726664896,-738.99,0.00028219,4]
[327967334,1716726664905,-1441.7,0.00028219,4]
[327967335,1716726664914,-544.32,0.00028219,4]
[327967336,1716726664923,-500.0,0.00028219,4]
[327967337,1716726664932,-1062.05,0.00028219,4]
[327967338,1716726664941,-642.47,0.00028219,4]
[327967339,1716726664950,-500.0,0.00028219,4]
[327967340,1716726664960,-1254.13,0.00028219,4]
[327967341,1716726664968,-529.71,0.00028219,4]
[327967342,1716726664978,-1691.87,0.00028219,4]
[327967343,1716726664987,-500.0,0.00028219,4]
[327967344,1716726664996,-593.89,0.00028219,4]
[327967345,1716726665005,-1340.06,0.00028219,4]
[327967346,1716726665014,-1257.54,0.00028219,4]
[327967347,1716726665023,-2117.85,0.00028219,4]
[327967348,1716726665033,-500.0,0.00028219,4]
[327967349,1716726665042,-1347.74,0.00028219,4]
[327967350,1716726665052,-500.0,0.00028219,4]
[327967351,1716726665061,-1205.79,0.00028219,4]
[327967352,1716726665071,-724.99,0.00028219,4]
[327967353,1716726665080,-609.02,0.00028219,4]
[327967354,1716726665090,-1598.98,0.00028219,4]
[327967355,1716726665099,-1095.74,0.00028219,4]
[327967356,1716726665108,-542.01,0.00028219,4]
[327967357,1716726665118,-1432.81,0.00028219,4]
[327967358,1716726665126,-879.0,0.00028219,4]
[327967359,1716726665136,-1533.8,0.00028219,4]
[327967360,1716726665145,-500.0,0.00028219,4]
[327967361,1716726665155,-1527.33,0.00028219,4]
[327967362,1716726665164,-5751.57,0.00028219,4]
[327967363,1716726665173,-500.0,0.00028219,4]
[327967364,1716726665182,-2414.44,0.00028219,4]
[327967365,1716726665191,-500.0,0.00028219,4]
[327967366,1716726665201,-600.84,0.00028219,4]
[327967367,1716726665210,-1046.61,0.00028219,4]
[327967368,1716726665220,-1425.98,0.00028219,4]
[327967369,1716726665229,-500.0,0.00028219,4]
[327967370,1716726665238,-1675.63,0.00028219,4]
[327967371,1716726665247,-871.39,0.00028219,4]
[327967372,1716726665256,-3554.45,0.00028219,4]
[327967373,1716726665264,-1587.44,0.00028219,4]
[327967374,1716726665273,-500.0,0.00028219,4]
[327967375,1716726665283,-712.31,0.00028219,4]
[327967376,1716726665292,-842.59,0.00028219,4]
[327967377,1716726665301,-1622.74,0.00028219,4]
[327967378,1716726665311,-893.2,0.00028219,4]
[327967379,1716726665320,-500.0,0.00028219,4]
[327967380,1716726665329,-1368.43,0.00028219,4]
[327967381,1716726665339,-1056.86,0.00028219,4]
[327967382,1716726665349,-844.35,0.00028219,4]
[327967383,1716726665358,-999.05,0.00028219,4]
[327967384,1716726665368,-500.0,0.00028219,4]
[327967385,1716726665378,-1514.36,0.00028219,4]
[327967386,1716726665387,-1302.27,0.00028219,4]
[327967387,1716726665396,-500.0,0.00028219,4]
[327967388,1716726665405,-254.66721087,0.00028219,4]
[327967389,1716726665414,-1168.5,0.00028219,4]
[327967390,1716726665422,-500.0,0.00028219,4]
[327967391,1716726665431,-744.61,0.00028219,4]
[327967392,1716726665441,-668.27,0.00028219,4]
[327967393,1716726665450,-688.25,0.00028219,4]
[327967394,1716726665459,-151.0,0.00028219,7]
[327967395,1716726665472,-500.0,0.00028219,4]
[327967396,1716726665481,-12808.04,0.00028219,4]
[327967397,1716726665491,-1753.43,0.00028219,4]
[327967398,1716726665504,-743.78,0.00028219,4]
[327967399,1716726665515,-1296.02,0.00028219,4]
[327967400,1716726665524,-1935.26,0.00028219,4]
[327967401,1716726665535,-1350.29,0.00028219,4]
[327967402,1716726665547,-867.66,0.00028219,4]
[327967403,1716726665556,-842.24,0.00028219,4]
[327967404,1716726665565,-500.0,0.00028219,4]
[327967405,1716726665574,-2172.85,0.00028219,4]
[327967406,1716726665592,-1538.51,0.00028219,4]
[327967407,1716726665603,-2713.25,0.00028219,4]
[327967408,1716726665612,-1252.93,0.00028219,4]
[327967409,1716726665621,-6095.74,0.00028219,4]
[327967410,1716726665631,-1281.4,0.00028219,4]
[327967411,1716726665641,-602.98,0.00028219,4]
[327967412,1716726665651,-517.84,0.00028219,4]
[327967413,1716726665660,-967.13,0.00028219,4]
[327967414,1716726665669,-500.0,0.00028219,4]
[327967415,1716726665680,-500.0,0.00028219,4]
[327967416,1716726665690,-838.0,0.00028219,4]
[327967417,1716726665701,-500.0,0.00028219,4]
[327967418,1716726665710,-1316.87,0.00028219,4]
[327967419,1716726665720,-1328.58,0.00028219,4]
[327967420,1716726665729,-1041.7,0.00028219,4]
[327967421,1716726665739,-864.28,0.00028219,4]
[327967422,1716726665748,-500.0,0.00028219,4]
[327967423,1716726665758,-961.04,0.00028219,4]
[327967424,1716726665767,-691.79,0.00028219,4]
[327967425,1716726665777,-2862.83,0.00028219,4]
[327967426,1716726665787,-567.52,0.00028219,4]
[327967427,1716726665796,-1530.36,0.00028219,4]
[327967428,1716726665806,-500.0,0.00028219,4]
[327967429,1716726665816,-1793.03,0.00028219,4]
[327967430,1716726665826,-500.0,0.00028219,4]
[327967431,1716726665835,-151.0,0.00028219,7]
[327967432,1716726665960,-970.7,0.00028219,4]
[327967433,1716726666002,-500.0,0.00028219,4]
[327967434,1716726666012,-500.0,0.00028219,4]
[327967435,1716726666021,-511.01,0.00028219,4]
[327967436,1716726666032,-592.12,0.00028219,4]
[327967437,1716726666041,-1409.2035754,0.00028473,2]
[327967438,1716726666051,-497.9811449,0.00028473,2]
[327967439,1716726666060,-934.4290548,0.00028473,2]
[327967440,1716726666069,-9100.8443384,0.00028473,2]
[327967441,1716726666079,-625.0,0.00028492,4]
[327967442,1716726666088,-625.0,0.00028492,4]
[327967443,1716726666097,-3196.06,0.00028492,4]
[327967444,1716726666107,-3196.06,0.00028492,4]
[327967445,1716726666116,-500.0,0.00028493,4]
[327967446,1716726666125,-500.0,0.00028493,4]
[327967447,1716726666135,-500.0,0.00028493,4]
[327967448,1716726666144,-500.0,0.00028493,4]
[327967449,1716726666153,-500.0,0.00028493,4]
[327967450,1716726666163,-500.0,0.00028493,4]
[327967451,1716726666172,-500.0,0.00028493,4]
[327967452,1716726666182,-170.38435443,0.00028493,4]
[327967453,1716726666191,-589.05,0.00028493,4]
[327967454,1716726666200,-500.0,0.00028493,4]
[327967455,1716726666210,-500.0,0.00028493,4]
[327967456,1716726666219,-500.0,0.00028493,4]
[327967457,1716726666229,-253.06235401,0.00028493,4]
[327967458,1716726666239,-500.0,0.00028493,4]
[327967459,1716726666248,-500.0,0.00028493,4]
[327967460,1716726666258,-500.0,0.00028493,4]
[327967461,1716726666267,-500.0,0.00028493,4]
[327967462,1716726666277,-234.8276013,0.00028493,4]
[327967463,1716726666288,-500.0,0.00028493,4]
[327967464,1716726666298,-500.0,0.00028493,4]
[327967465,1716726666307,-738.56,0.00028493,4]
[327967466,1716726666317,-500.0,0.00028493,4]
[327967467,1716726666327,-500.0,0.00028493,4]
[327967468,1716726666336,-561.95350354,0.00028493,4]
[327967469,1716726666345,-500.0,0.00028493,4]
[327967470,1716726666355,-500.0,0.00028493,4]
[327967471,1716726666364,-500.0,0.00028493,4]
[327967472,1716726666373,-500.0,0.00028493,4]
[327967473,1716726666382,-500.0,0.00028493,4]
[327967474,1716726666391,-578.87049171,0.00028493,4]
[327967475,1716726666401,-500.0,0.00028493,4]
[327967476,1716726666410,-500.0,0.00028493,4]
[327967477,1716726666420,-172.81553976,0.00028493,4]
[327967478,1716726666430,-500.0,0.00028493,4]
[327967479,1716726666439,-500.0,0.00028493,4]
[327967480,1716726666449,-599.44,0.00028493,4]
[327967481,1716726666459,-659.18,0.00028493,4]
[327967482,1716726666471,-500.0,0.00028493,4]
[327967483,1716726666481,-500.0,0.00028493,4]
[327967484,1716726666492,-321.63273263,0.00028493,4]
[327967485,1716726666502,-500.0,0.00028493,4]
[327967486,1716726666512,-500.0,0.00028493,4]
[327967487,1716726666523,-500.0,0.00028493,4]
[327967488,1716726666534,-647.64365143,0.00028493,4]
[327967489,1716726666545,-500.0,0.00028493,4]
[327967490,1716726666554,-500.0,0.00028493,4]
[327967491,1716726666565,-500.0,0.00028493,4]
[327967492,1716726666575,-500.0,0.00028493,4]
[327967493,1716726666584,-500.0,0.00028493,4]
[327967494,1716726666593,-500.0,0.00028493,4]
[327967495,1716726666604,-543.81691205,0.00028493,4]
[327967496,1716726666618,-1715.79,0.00028493,4]
[327967497,1716726666629,-500.0,0.00028493,4]
[327967498,1716726666640,-500.0,0.00028493,4]
[327967499,1716726666650,-500.0,0.00028493,4]
[327967500,1716726666660,-500.0,0.00028493,4]
[327967501,1716726666670,-500.0,0.00028493,4]
[327967502,1716726666680,-1319.74,0.00028493,2]
[327967503,1716726666690,-500.0,0.00028493,4]
[327967504,1716726666700,-695.19,0.00028493,4]
[327967505,1716726666710,-500.0,0.00028493,4]
[327967506,1716726666720,-572.59009167,0.00028493,4]
[327967507,1716726666731,-500.0,0.00028493,4]
[327967508,1716726666743,-500.0,0.00028493,4]
[327967509,1716726666753,-500.0,0.00028493,4]
[327967510,1716726666764,-500.0,0.00028493,4]
[327967511,1716726666775,-500.0,0.00028493,4]
[327967512,1716726666787,-500.0,0.00028493,4]
[327967513,1716726666797,-500.0,0.00028493,4]
[327967514,1716726666808,-500.0,0.00028493,4]
[327967515,1716726666818,-500.0,0.00028493,4]
[327967516,1716726666828,-1272.62,0.00028493,4]
[327967517,1716726666838,-500.0,0.00028493,4]
[327967518,1716726666848,-500.0,0.00028493,4]
[327967519,1716726666858,-500.0,0.00028493,4]
[327967520,1716726666868,-500.0,0.00028493,4]
[327967521,1716726666878,-500.0,0.00028493,4]
[327967522,1716726666888,-500.0,0.00028493,4]
[327967523,1716726666898,-500.0,0.00028493,4]
[327967524,1716726666908,-500.0,0.00028493,4]
[327967525,1716726666918,-500.0,0.00028493,4]
[327967526,1716726666928,-852.02,0.00028493,2]
[327967527,1716726666938,-500.0,0.00028493,4]
[327967528,1716726666949,-500.0,0.00028493,4]
[327967529,1716726666959,-500.0,0.00028493,4]
[327967530,1716726666969,-500.0,0.00028493,4]
[327967531,1716726666979,-539.12,0.00028493,4]